Cogmind - Beta 13 @@@ ROGUE MODE // 2024.05.02 @ 03:06:39 Player: A Moose Result: Destroyed by H-61 Shepherd with Heavy Assault Cannon Performance ------------- Evolutions (3) 1500 Regions Visited (10) 2000 Robots Destroyed (99) 495 Value Destroyed (4761) 4761 Prototype IDs (5) 100 Alien Tech Used (0) 0 Bonus (3408) 3408 TOTAL SCORE: 12264 Bonus ------- High Alert Combat Kills 616 Follower Combat Kills 708 Entered Garrisons 600 Used RIF Installer 1500 Friendly Fire -16 Cogmind --------- Core Integrity 0/700 Matter 128/300 Energy 343/350 System Corruption 2% Temperature Warm (144) Movement Rolling (160) Ox4 Location -7/Garrison Parts ------- > --- POWER (1) -------- Reinforced Quantum Reactor > --- PROPULSION (2) --- Compact Wheel Compact Wheel > --- UTILITY (7) ------ Huge Storage Unit Improved Targeting Computer Core Analyzer Improved Light Armor Plating Reactive Plating Hacking Suite Relay Coupler [Sentry] (20) > --- WEAPON (3) ------- KE Penetrator Heavy Assault Cannon > --- INVENTORY (25) --- Improved Deuterium Engine Micro Fission Core Wheel Compact Wheel Compact Wheel Compact Wheel Improved Heat Sink Compact Matter Pod (150) Improved Signal Interpreter Armor Integrity Analyzer Hardened Heavy Armor Plating Reactive Plating Reactive Plating Hacking Suite Relay Coupler [NC] (27) Relay Coupler [Swarmer] (39) Relay Coupler [Duelist] (33) Minigun Flak Gun Flak Gun Improved Remote Datajack Improved Remote Datajack Plasma Cutter Katana Peak State ------------ > --- POWER ------------ Reinforced Quantum Reactor > --- PROPULSION ------- Compact Wheel Compact Wheel > --- UTILITY ---------- Huge Storage Unit Improved Targeting Computer Core Analyzer Improved Light Armor Plating Reactive Plating Hacking Suite Relay Coupler [Sentry] > --- WEAPON ----------- Heavy Laser KE Penetrator Mini Grenade Launcher > --- INVENTORY -------- Improved Deuterium Engine Micro Fission Core Wheel Compact Wheel Compact Wheel Compact Wheel Improved Heat Sink Compact Matter Pod Improved Signal Interpreter Armor Integrity Analyzer Hardened Heavy Armor Plating Reactive Plating Reactive Plating Hacking Suite Relay Coupler [NC] Relay Coupler [Swarmer] Relay Coupler [Duelist] Minigun Flak Gun Flak Gun Improved Remote Datajack Improved Remote Datajack Plasma Cutter Katana [Rating: 50] Favorites ----------- Power Improved Ion Engine Engine Improved Ion Engine Power Core Light Nuclear Core Reactor Reinforced Quantum Reactor Propulsion Compact Wheel Treads Light Treads Wheel Compact Wheel Utility Improved Targeting Computer Device Improved Heat Sink Storage Huge Storage Unit Processor Improved Targeting Computer Hackware Hacking Suite Protection Light Armor Plating Weapon Heavy Assault Rifle Energy Gun Gatling Laser Ballistic Gun Heavy Assault Rifle Ballistic Cannon Heavy Assault Cannon Launcher Rocket Launcher Special Weapon Improved Remote Datajack Slashing Weapon Katana Special Melee Weapon Datajack Build | -11 -10 -10 -9 -9 -9 -9 -7 -7 -7 -7 ------- Run | Yrd Mat Min Mat Sto Gar Rec Fac Gar Fac Gar Slots Evolved 6 | . . . 2 . . . 4 . . . Power . | . . . . . . . . . . . Propulsion . | . . . . . . . . . . . Utility 5 | . . . 2 . . . 3 . . . Weapon 1 | . . . . . . . 1 . . . Parts Attached 106 | 6 1 . 3 6 13 11 26 17 14 9 Power 11 | 1 . . 1 . . 1 2 2 2 2 Engine 5 | 1 . . 1 . . 1 . 1 . 1 Core 5 | . . . . . . . 2 1 2 . Reactor 1 | . . . . . . . . . . 1 Propulsion 17 | 2 . . . 3 2 4 4 2 . . Treads 3 | . . . . 1 2 . . . . . Leg . | . . . . . . . . . . . Wheel 14 | 2 . . . 2 . 4 4 2 . . Hover . | . . . . . . . . . . . Flight . | . . . . . . . . . . . Utility 33 | 1 1 . 2 2 2 3 8 7 5 2 Device 3 | . . . . . . . 2 . 1 . Storage 3 | 1 . . . 1 . . . 1 . . Processor 3 | . . . 1 . . . 1 1 . . Hackware 6 | . . . . . . 1 1 . 3 1 Protection 18 | . 1 . 1 1 2 2 4 5 1 1 Artifact . | . . . . . . . . . . . Weapon 45 | 2 . . . 1 9 3 12 6 7 5 Energy Gun 10 | . . . . . . 1 7 1 . 1 Energy Cannon . | . . . . . . . . . . . Ballistic Gun 19 | 2 . . . 1 6 1 2 4 1 2 Ballistic Cannon 1 | . . . . . . . . . . 1 Launcher 8 | . . . . . 3 . 1 1 2 1 Special Weapon 4 | . . . . . . . . . 4 . Impact Weapon . | . . . . . . . . . . . Slashing Weapon 1 | . . . . . . . 1 . . . Piercing Weapon . | . . . . . . . . . . . Special Melee Weapon 2 | . . . . . . 1 1 . . . Unidentified Prototypes . | . . . . . . . . . . . Parts Lost 33 | . . . 1 1 7 . 13 8 1 2 Power 4 | . . . . . . . 2 2 . . Propulsion 7 | . . . 1 1 2 . 2 1 . . Utility 12 | . . . . . 2 . 4 4 1 1 Weapon 10 | . . . . . 3 . 5 1 . 1 Highest Loss Streak 4 | . . . 1 1 3 . 4 2 1 1 To Critical Strikes . | . . . . . . . . . . . Average Slot Usage (%) 91 | . 100 100 83 97 83 94 82 92 99 99 Engine 6 | . 14 14 11 11 9 10 1 1 . 2 Core 2 | . . . . . . . 4 5 7 4 Treads 1 | . . . . 6 3 4 . . . . Wheel 13 | . 28 28 16 14 9 17 12 8 15 15 Device 2 | . . . . . . . 6 7 5 . Storage 9 | . 14 14 11 11 11 11 7 7 7 7 Processor 11 | . . . 5 11 11 11 13 15 15 15 Hackware 5 | . . . . . . 7 6 7 13 15 Protection 14 | . 14 14 17 22 19 10 7 13 9 14 Energy Gun 3 | . . . . . . 2 10 6 3 2 Ballistic Gun 15 | . 28 28 22 22 14 10 2 14 12 18 Launcher 1 | . . . . . 4 . . . 1 . Naked Turns . | . . . . . . . . . . . Heaviest Build 133 | 13 14 14 19 96 98 96 101 110 113 133 Greatest Support 40 | 26 26 26 26 32 40 40 28 32 32 32 Greatest Overweight (x) 9 | . . . 1 5 9 3 7 3 3 4 Average Overweight (x) 3 | . . . . 2 7 2 3 3 3 3 Largest Inventory Capacity 25 | 8 8 8 8 25 25 25 25 25 25 25 Average Capacity 22 | 7 8 8 8 20 25 25 25 25 25 25 Most Carried 25 | 5 6 8 8 22 23 24 25 25 25 25 Average Carried 19 | 2 4 7 7 14 20 20 19 24 24 24 Final Capacity 25 | 8 8 8 8 25 25 25 25 25 25 25 Final Carried 25 | 4 6 8 8 21 22 23 24 25 24 25 Class Distribution -------------------- 42% | Scavenger-Mutant 18% | Mutant 17% | Scavenger-Gunner 16% | Bothacker-Gunner Dominant Class ---------------- Mutant | -10/Materials Mutant | -10/Mines Mutant | -9/Materials Scavenger-Mutant | -9/Storage Scavenger-Mutant | -9/Garrison Scavenger-Mutant | -9/Recycling Scavenger-Mutant | -7/Factory Scavenger-Gunner | -7/Garrison Bothacker-Gunner | -7/Factory Bothacker-Gunner | -7/Garrison Resources | -11 -10 -10 -9 -9 -9 -9 -7 -7 -7 -7 ----------- Run | Yrd Mat Min Mat Sto Gar Rec Fac Gar Fac Gar Matter Collected 2581 | 238 35 53 59 361 362 157 233 558 204 321 Remotely . | . . . . . . . . . . . Salvage Created 3940 | . 49 66 129 679 470 227 689 1021 306 304 Parts 215 | . 3 6 15 30 36 9 27 60 16 13 Haulers Intercepted 1 | . . . . . . . 1 . . . Recyclers Shooed 8 | . . . . 5 . 3 . . . . Parts Field Recycled . | . . . . . . . . . . . Retrieved Matter . | . . . . . . . . . . . Parts Self-Destructed . | . . . . . . . . . . . Prevented . | . . . . . . . . . . . Kills | -11 -10 -10 -9 -9 -9 -9 -7 -7 -7 -7 ------- Run | Yrd Mat Min Mat Sto Gar Rec Fac Gar Fac Gar Combat Hostiles Destroyed 85 | . 3 4 3 7 13 . 13 27 8 7 Melee 2 | . . . . . . . 2 . . . Guns 63 | . 3 4 3 7 7 . 8 22 2 7 AOE 20 | . . . . . 6 . 3 5 6 . Classes Destroyed 15 | . 1 1 1 5 1 . 1 2 1 2 Worker 1 | . . . . 1 . . . . . . Builder 1 | . . . . . . . . . 1 . Hauler 1 | . . . . . . . 1 . . . Recycler 7 | . . . . 3 . 3 1 . . . Mechanic 1 | . . . . 1 . . . . . . Operator 1 | . . . . . . . . . . 1 Watcher 3 | . . . . 2 . . . . 1 . Swarmer 22 | . 3 3 1 2 . . 3 10 . . Grunt 43 | . . . . 2 9 . 8 11 8 5 Duelist 2 | . . . . . . . . 1 . 1 Sentry 9 | . . . 2 3 1 . 2 1 . . Specialist 1 | . . . . . . . . 1 . . Hunter 1 | . . . . . . . . . . 1 Programmer 6 | . . . . . 3 . . 3 . . Assembled 1 | . . 1 . . . . . . . . Best Kill Streak 9 | . 3 3 2 3 3 1 9 7 5 3 Combat Bots Only 7 | . 3 3 2 2 3 . 7 7 4 3 Max Kills in Single Turn 4 | . 1 1 1 1 2 1 2 4 3 1 Gunslinging 1 | . . . . . . . . 1 . . Exploded 4 | . . . . . 2 . 2 4 3 . Melee 1 | . . . . . . . 1 . . . Uniques/NPCs Destroyed . | . . . . . . . . . . . Combat | -11 -10 -10 -9 -9 -9 -9 -7 -7 -7 -7 -------- Run | Yrd Mat Min Mat Sto Gar Rec Fac Gar Fac Gar Hostile Shots Fired 509 | . 14 14 25 28 59 . 144 161 27 37 Missed 130 | . 4 3 7 7 11 . 54 32 10 2 Damage Taken 5565 | . 82 81 173 284 749 . 1218 2004 268 706 Core 974 | . 17 31 77 23 82 . 233 212 57 242 Absorbed by Shields . | . . . . . . . . . . . Redirected to Shielding 26 | . 2 6 4 4 10 . . . . . Ignored by Resistances 150 | . . . . . . . . 39 3 108 Core Remaining (%) 78 | 100 . 80 . . . 54 . . . . Volleys Fired 262 | . 7 9 9 56 35 13 34 50 21 28 Largest 3 | . 2 2 2 2 2 2 3 3 3 3 Hottest 135 | . 40 40 40 43 56 79 135 133 133 132 Shots Fired 551 | . 14 18 18 112 69 27 65 138 28 62 Gun 518 | . 14 18 18 112 63 27 63 136 11 56 Cannon 1 | . . . . . . . . . . 1 Launcher 20 | . . . . . 6 . 2 2 5 5 Special 12 | . . . . . . . . . 12 . Kinetic 395 | . 14 18 18 112 63 13 2 94 10 51 Thermal 114 | . . . . . . 14 51 42 1 6 Explosive 20 | . . . . . 6 . 2 2 5 5 Electromagnetic 10 | . . . . . . . 10 . . . Robot Hit Streak 22 | . 2 3 4 20 11 12 22 18 9 7 Robot Miss Streak 7 | . 3 4 6 4 2 2 3 5 4 7 Penetration Max . | . . . . . . . . . . . Secondary Targets 13 | . . 2 . . . . 2 8 . 1 Max Gunslinging Chain 1 | . . 1 . . . . 1 1 . 1 Shots Hit Robots 382 | . 6 7 9 74 44 21 59 98 22 42 Core Hits 224 | . 3 5 6 31 23 6 30 65 20 35 Critical Kills 1 | . . . . . . . . 1 . . Critical Parts Destroyed 3 | . . . . . 1 . . 1 . 1 Critical Strikes 9 | . . . . . 1 . 5 2 . 1 Burn 2 | . . . . . . . 2 . . . Destroy 4 | . . . . . 1 . . 2 . 1 Sever 3 | . . . . . . . 3 . . . Melee Attacks 15 | . . . . . . 3 12 . . . Impact . | . . . . . . . . . . . Slashing 11 | . . . . . . . 11 . . . Piercing . | . . . . . . . . . . . Sneak Attacks 4 | . . . . . . 3 1 . . . Combat Hostiles . | . . . . . . . . . . . Follow-up Attacks . | . . . . . . . . . . . Damage Inflicted 7697 | . 70 81 92 985 998 285 1317 2190 817 862 Guns 5723 | . 70 81 92 985 689 285 799 1903 116 703 Cannons . | . . . . . . . . . . . Explosions 1751 | . . . . . 309 . 295 287 701 159 Melee 223 | . . . . . . . 223 . . . Ramming . | . . . . . . . . . . . Kinetic 3850 | . 70 81 92 985 689 170 31 1012 93 627 Thermal 1722 | . . . . . . 115 617 891 23 76 Explosive 1751 | . . . . . 309 . 295 287 701 159 Electromagnetic 151 | . . . . . . . 151 . . . Impact . | . . . . . . . . . . . Slashing 223 | . . . . . . . 223 . . . Piercing . | . . . . . . . . . . . Highest Corruption 4 | . . . . . 4 4 . 2 2 2 Average Corruption 2 | . . . . . 3 4 . 1 2 2 Corruption Purged . | . . . . . . . . . . . Corruption Blocked . | . . . . . . . . . . . Effects 27 | . . . . . 3 6 . 4 9 5 Message Errors 4 | . . . . . . . . 1 2 1 Matter Fused 9 | . . . . . 2 1 . 3 2 1 Heat Flow Errors 4 | . . . . . . 2 . . 1 1 Energy Discharges 1 | . . . . . . . . . 1 . Data Loss (minor) 2 | . . . . . . 1 . . 1 . Data Loss (major) 1 | . . . . . . . . . . 1 Misfires 3 | . . . . . . 1 . . 1 1 Alerts 3 | . . . . . 1 1 . . 1 . Overload Shots . | . . . . . . . . . . . Overflow Damage 30 | . . . . . . . 14 . 12 4 Projectiles . | . . . . . . . . . . . Explosions 30 | . . . . . . . 14 . 12 4 Melee . | . . . . . . . . . . . Knockbacks . | . . . . . . . . . . . Impact . | . . . . . . . . . . . Kinetic . | . . . . . . . . . . . Secondary . | . . . . . . . . . . . Self-Inflicted Damage 149 | . . . . . 75 . 24 21 29 . Shots 5 | . . . . . 2 . 1 1 1 . Rammed . | . . . . . . . . . . . Targets Rammed . | . . . . . . . . . . . Kicked . | . . . . . . . . . . . Crushed . | . . . . . . . . . . . Highest Temperature 384 | . . . 9 34 10 171 278 347 101 384 Average Temperature 83 | . . . 7 3 3 67 71 94 26 160 Received Heat Transfer 1632 | . . . 27 114 159 . 498 540 141 153 Effects 1 | . . . . . . . . 1 . . Shutdowns 1 | . . . . . . . . 1 . . Siege Activations . | . . . . . . . . . . . Robots Corrupted . | . . . . . . . . . . . Combat Hostiles . | . . . . . . . . . . . Parts Fried 1 | . . . . . . . 1 . . . Impact Corruptions . | . . . . . . . . . . . Robots Melted . | . . . . . . . . . . . Combat Hostiles . | . . . . . . . . . . . Parts Melted 8 | . . . . 1 . . 2 5 . . Heat Transferred 3979 | . . . . . . 296 1628 1857 50 148 Parts Sabotaged . | . . . . . . . . . . . Parts Stolen . | . . . . . . . . . . . Parts Stripped . | . . . . . . . . . . . Power Chain Reactions . | . . . . . . . . . . . Alert | -11 -10 -10 -9 -9 -9 -9 -7 -7 -7 -7 ------- Run | Yrd Mat Min Mat Sto Gar Rec Fac Gar Fac Gar Peak Influence 984 | . 85 118 256 502 984 464 317 794 699 705 Initial 442 | . . 33 45 107 326 442 110 144 416 382 Average 438 | . 40 102 156 315 684 412 179 495 496 497 Maximum Alert Level 3 | . . . 1 2 3 2 1 3 2 3 Low Security (%) 18 | 100 100 100 58 20 . . 64 3 . . Level 1 21 | . . . 41 59 7 23 35 24 . 26 Level 2 47 | . . . . 20 41 76 . 65 100 71 Level 3 12 | . . . . . 51 . . 6 . 1 Level 4 . | . . . . . . . . . . . Level 5 . | . . . . . . . . . . . High Security . | . . . . . . . . . . . Max Security . | . . . . . . . . . . . Squads Dispatched 12 | . 1 . 1 3 . . 5 . 2 . Investigation 4 | . . . . 1 . . 1 . 2 . Extermination 1 | . . . . . . . 1 . . . Reinforcement 2 | . 1 . 1 . . . . . . . Assault . | . . . . . . . . . . . Garrison 5 | . . . . 2 . . 3 . . . Intercept . | . . . . . . . . . . . Searches Triggered . | . . . . . . . . . . . Construction Impeded . | . . . . . . . . . . . Haulers Reinforced . | . . . . . . . . . . . Active Scanning Responses . | . . . . . . . . . . . Cargo Convoy Interrupts . | . . . . . . . . . . . Alert ID Control Effect 2 | . . . . . . . . . . 2 Stealth | -11 -10 -10 -9 -9 -9 -9 -7 -7 -7 -7 --------- Run | Yrd Mat Min Mat Sto Gar Rec Fac Gar Fac Gar Distress Signals 5 | . . . . 4 . . . . 1 . Communications Jammed . | . . . . . . . . . . . Distress Signals . | . . . . . . . . . . . Times Spotted 134 | . 5 5 7 22 22 . 18 29 15 11 Peak Tracking Total 7 | . 4 2 3 3 3 . 5 7 5 2 Tactical Retreats 4 | . . . . 1 1 . 1 . 1 . Traps | -11 -10 -10 -9 -9 -9 -9 -7 -7 -7 -7 ------- Run | Yrd Mat Min Mat Sto Gar Rec Fac Gar Fac Gar Traps Triggered 12 | . . . . 1 4 . 1 4 . 2 Indirectly . | . . . . . . . . . . . Trap Hack Attempts . | . . . . . . . . . . . Triggered . | . . . . . . . . . . . Disarmed 4 | . . . . 4 . . . . . . Reprogrammed . | . . . . . . . . . . . Reused 1 | . . . . . 1 . . . . . Traps Extracted . | . . . . . . . . . . . Installed 2 | . . . . . 2 . . . . . Triggered 1 | . . . . . 1 . . . . . Most Traps Carried 3 | . . 3 3 3 3 . . . . . Machines | -11 -10 -10 -9 -9 -9 -9 -7 -7 -7 -7 ---------- Run | Yrd Mat Min Mat Sto Gar Rec Fac Gar Fac Gar Machines Disabled 13 | . . 1 . . 2 . . 2 1 7 Max in Single Turn 2 | . . . . . 1 . . 1 1 2 Garrison Relay 5 | . . . . . 2 . . 2 . 1 Phase Generator 1 | . . . . . . . . . . 1 Machines Repaired . | . . . . . . . . . . . Machines Dismantled . | . . . . . . . . . . . Machines Sabotaged . | . . . . . . . . . . . Overloaded Fab Kills . | . . . . . . . . . . . Hacking | -11 -10 -10 -9 -9 -9 -9 -7 -7 -7 -7 --------- Run | Yrd Mat Min Mat Sto Gar Rec Fac Gar Fac Gar Machines Accessed 23 | . . . 1 7 2 2 2 2 6 1 Terminals 20 | . . . 1 6 2 2 1 2 5 1 Fabricators . | . . . . . . . . . . . Repair Stations . | . . . . . . . . . . . Recycling Units . | . . . . . . . . . . . Scanalyzers . | . . . . . . . . . . . Garrison Access 3 | . . . . 1 . . 1 . 1 . Total Hacks 52 | . . . 6 23 2 3 4 2 11 1 Successful 28 | . . . 3 9 2 1 4 2 6 1 Failed 24 | . . . 3 14 . 2 . . 5 . Catastrophic 3 | . . . . 2 . . . . 1 . Database Lockouts . | . . . . . . . . . . . Manual 5 | . . . . 5 . . . . . . Terminals 48 | . . . 6 21 2 3 3 2 10 1 Fabricators . | . . . . . . . . . . . Repair Stations . | . . . . . . . . . . . Recycling Units . | . . . . . . . . . . . Scanalyzers . | . . . . . . . . . . . Garrison Access 4 | . . . . 2 . . 1 . 1 . Terminal Hacks 25 | . . . 3 8 2 1 3 2 5 1 Part Schematic 1 | . . . . . . 1 . . . . Robot Analysis 2 | . . . . 1 . . . . 1 . Prototype ID Bank 3 | . . . 1 2 . . . . . . Open DSF 1 | . . . . . . . . . 1 . Branch Access Points 1 | . . . . 1 . . . . . . Emergency Access Points 5 | . . . 1 . 1 . 1 1 . 1 Locate Traps 4 | . . . . 2 . . . . 2 . Disarm Traps 1 | . . . . 1 . . . . . . Investigation Status 2 | . . . 1 1 . . . . . . Hauler Manifests 1 | . . . . . . . 1 . . . Zone Layout 2 | . . . . . . . 1 . 1 . Patrol Navigation 2 | . . . . . 1 . . 1 . . Fabricator Hacks . | . . . . . . . . . . . Repair Station Hacks . | . . . . . . . . . . . Recycling Unit Hacks . | . . . . . . . . . . . Scanalyzer . | . . . . . . . . . . . Garrison Access Hacks 3 | . . . . 1 . . 1 . 1 . Unlock Access 3 | . . . . 1 . . 1 . 1 . Unauthorized Hacks . | . . . . . . . . . . . Terminals . | . . . . . . . . . . . Fabricators . | . . . . . . . . . . . Repair Stations . | . . . . . . . . . . . Recycling Units . | . . . . . . . . . . . Scanalyzers . | . . . . . . . . . . . Garrison Access . | . . . . . . . . . . . Data Cores Recovered . | . . . . . . . . . . . Used . | . . . . . . . . . . . Hacking Detections 19 | . . . 1 7 2 2 2 1 4 . Full Trace Events 6 | . . . . 3 . . 1 . 2 . Feedback Events . | . . . . . . . . . . . Feedback Blocked . | . . . . . . . . . . . Robot Schematics Acquired . | . . . . . . . . . . . Robots Built . | . . . . . . . . . . . Authchips . | . . . . . . . . . . . Time . | . . . . . . . . . . . Total Robot Build Rating . | . . . . . . . . . . . Part Schematics Acquired 1 | . . . . . . 1 . . . . Parts Built . | . . . . . . . . . . . Authchips . | . . . . . . . . . . . Time . | . . . . . . . . . . . Total Part Build Rating . | . . . . . . . . . . . Parts Repaired . | . . . . . . . . . . . Time . | . . . . . . . . . . . Parts Recycled . | . . . . . . . . . . . Recycled Matter . | . . . . . . . . . . . Retrieved Matter . | . . . . . . . . . . . Retrieved Components . | . . . . . . . . . . . Parts Scanalyzed . | . . . . . . . . . . . Part Schematics Acquired . | . . . . . . . . . . . Parts Damaged . | . . . . . . . . . . . Bothacking | -11 -10 -10 -9 -9 -9 -9 -7 -7 -7 -7 ------------ Run | Yrd Mat Min Mat Sto Gar Rec Fac Gar Fac Gar Used RIF Installer 3 | . . . . . 1 . . 2 . . Alert ID Control 1 | . . . . . . . . 1 . . Program Shield 1 | . . . . . . . . 1 . . Robots Hacked 9 | . . . . . . 1 1 . 7 . Non-combat 7 | . . . . . . 1 1 . 5 . Combat 2 | . . . . . . . . . 2 . Robot Hacks Applied 14 | . . . . . . 3 1 . 10 . no_distress 2 | . . . . . . . . . 2 . start_evac 1 | . . . . . . 1 . . . . map_walls 1 | . . . . . . . . . 1 . find_recycling 1 | . . . . . . 1 . . . . link_fov 4 | . . . . . . 1 . . 3 . amplify_resonance 3 | . . . . . . . 1 . 2 . formatsys_high 2 | . . . . . . . . . 2 . Relay Couplers Released 20 | . . . . . 9 . . 6 . 5 Machine Destruction 20 | . . . . . 9 . . 6 . 5 Attached 5 | . . . . . . 1 . . 3 1 Fabnet Peak Effective % . | . . . . . . . . . . . Robots Rewired . | . . . . . . . . . . . Allies Hacked . | . . . . . . . . . . . Hacks Repelled . | . . . . . . . . . . . Allies | -11 -10 -10 -9 -9 -9 -9 -7 -7 -7 -7 -------- Run | Yrd Mat Min Mat Sto Gar Rec Fac Gar Fac Gar Total Allies 15 | . . 3 . 10 . . . . 2 . Largest Group 10 | . . 3 3 10 2 . . . 2 2 Highest-Rated Group 88 | . . 40 40 88 16 . . . 64 64 Highest-Rated Ally 32 | . . 16 16 16 8 . . . 32 32 Total Orders . | . . . . . . . . . . . Ally Attacks 133 | . . 9 13 72 31 . . . . 8 Total Damage 1399 | . . 53 102 741 250 . . . . 253 Kills 28 | . . 2 3 13 8 . . . . 2 Allies Corrupted . | . . . . . . . . . . . Allies Melted . | . . . . . . . . . . . Intel | -11 -10 -10 -9 -9 -9 -9 -7 -7 -7 -7 ------- Run | Yrd Mat Min Mat Sto Gar Rec Fac Gar Fac Gar Robot Analysis Total 2 | . . . . 1 . . . . 1 . Derelict Logs Recovered 2 | . . 2 . . . . . . . . Drone Launches . | . . . . . . . . . . . Drone Recoveries . | . . . . . . . . . . . Exploration | -11 -10 -10 -9 -9 -9 -9 -7 -7 -7 -7 ------------- Run | Yrd Mat Min Mat Sto Gar Rec Fac Gar Fac Gar Turns Passed 5668 | 59 71 337 138 642 1262 521 515 1078 574 471 Spaces Moved 2980 | 49 53 291 105 309 521 301 225 568 336 222 Core 7 | 7 . . . . . . . . . . Treads 93 | . . . . . 66 27 . . . . Legs . | . . . . . . . . . . . Wheels 2880 | 42 53 291 105 309 455 274 225 568 336 222 Hover . | . . . . . . . . . . . Flight . | . . . . . . . . . . . Fastest Speed 50 | 50 90 90 90 115 135 130 135 145 145 145 Average Speed 147 | 84 90 90 102 143 210 145 147 145 145 145 Slowest Speed 320 | 90 90 90 115 175 320 320 195 145 145 160 Overloaded Moves . | . . . . . . . . . . . Propulsion Burnouts . | . . . . . . . . . . . Robots Hopped . | . . . . . . . . . . . Cave-ins Triggered . | . . . . . . . . . . . Exploration Rate (%) 34 | 3 16 63 13 41 56 73 4 59 13 42 Regions Visited 10 Branch Regions 3 Pre-discovered Areas 1 | . . 1 . . . . . . . . Known Exits Taken 3 | . . . . 1 . . 1 . 1 . Unknown Exits Taken 5 | 1 1 1 1 . . 1 . . . . Scrap Searched 1 | . . 1 . . . . . . . . Spaces Dug 11 | . . . . . 11 . . . . . Terrain Destroyed 143 | . . . . . 36 . 7 19 6 75 Melee . | . . . . . . . . . . . Projectile 1 | . . . . . . . . . . 1 AOE 142 | . . . . . 36 . 7 19 6 74 Terrain Rammed . | . . . . . . . . . . . Walls Destroyed . | . . . . . . . . . . . Machines Disabled . | . . . . . . . . . . . Actions | -11 -10 -10 -9 -9 -9 -9 -7 -7 -7 -7 --------- Run | Yrd Mat Min Mat Sto Gar Rec Fac Gar Fac Gar Total 3763 | 66 63 353 119 400 619 356 337 723 405 322 Wait 150 | 2 . 40 . 2 4 18 6 20 17 41 Move 2969 | 48 52 290 104 308 519 300 224 567 335 222 Hop . | . . . . . . . . . . . Pick Up 107 | 10 3 8 1 16 6 8 24 21 8 2 Fast Attach 12 | . . . 2 1 . . 2 4 2 1 Attach 51 | 6 1 . . 2 7 6 20 7 1 1 Detach 12 | . . . . 1 5 1 4 1 . . Swap 43 | . . . 1 3 6 5 4 6 11 7 Drop 52 | . . 6 2 3 3 2 7 15 10 4 Fire 262 | . 7 9 9 56 35 13 34 50 21 28 Melee 15 | . . . . . . 3 12 . . . Ram . | . . . . . . . . . . . Kick . | . . . . . . . . . . . Crush . | . . . . . . . . . . . Escape Stasis 88 | . . . . 8 32 . . 32 . 16 Rewire . | . . . . . . . . . . . Trap 2 | . . . . . 2 . . . . . Miscellaneous . | . . . . . . . . . . . Route ------- -11/Scrapyard -10/Materials -10/Mines -9/Materials -9/Storage (discovered 2 exits: Rec / Gar) -9/Garrison (discovered 2 exits: *Rec x2) -9/Recycling -7/Factory -7/Garrison (discovered 3 exits: *Fac x3) -7/Factory -7/Garrison (discovered 1 exit: [*Fac]) History --------- Turn | Location | Event 2 | -11/Scrapyard | Met Revision 17 23 | -11/Scrapyard | Discovered new exit (range 14) 60 | -11/Scrapyard | Entered Materials 72 | -10/Materials | Discovered new exit (range 16) 131 | -10/Materials | Entered Mines 263 | -10/Mines | Learned location of Zion (-6) 305 | -10/Mines | Build established: Mutant 310 | -10/Mines | Assisted by bots powering up and referring to "LRC-V3" 311 | -10/Mines | Assembled infested the area 407 | -10/Mines | Found a hidden stash of uninstalled traps 430 | -10/Mines | Learned Materials interactive machine intel 437 | -10/Mines | Discovered new exit (range 8) 468 | -10/Mines | Entered Materials 468 | -9/Materials | Accompanied by 3 allies 468 | -9/Materials | Evolved 2 slots: Utility x2 469 | -9/Materials | Loaded intel: 18 interactive machine locations 597 | -9/Materials | Discovered new exit (range 5) 606 | -9/Materials | Entered Storage 606 | -9/Storage | Accompanied by 3 allies 993 | -9/Storage | Assisted by bots powering up and referring to "LRC-V3" 1056 | -9/Storage | Identified exit to Recycling 1103 | -9/Storage | Garrison activated, responded to threat 1124 | -9/Storage | Identified exit to Garrison 1188 | -9/Storage | Lost 6 allies 1248 | -9/Storage | Entered Garrison 1248 | -9/Garrison | Accompanied by 2 allies 1288 | -9/Garrison | Triggered checkpoint 1311 | -9/Garrison | Garrison Relay disabled 1425 | -9/Garrison | Build established: Scavenger-Mutant 1470 | -9/Garrison | Triggered checkpoint 1508 | -9/Garrison | Triggered checkpoint 1760 | -9/Garrison | Triggered checkpoint 1772 | -9/Garrison | Discovered exit to Recycling (range 12) 1945 | -9/Garrison | Installed Relay Interface Framework 1975 | -9/Garrison | Garrison Relay disabled 1976 | -9/Garrison | Triggered checkpoint 2203 | -9/Garrison | Discovered exit to Recycling (range 10) 2266 | -9/Garrison | Triggered checkpoint 2396 | -9/Garrison | Lost 3 parts (1u2w) 2510 | -9/Garrison | Entered Recycling 3002 | -9/Recycling | Discovered new exit (range 15) 3031 | -9/Recycling | Entered Factory 3031 | -7/Factory | Evolved 4 slots: Utility x3, Weapon x1 3203 | -7/Factory | Lost 4 parts (1p1n1u1w) 3227 | -7/Factory | Garrison activated, responded to threat 3289 | -7/Factory | Lost 3 parts (1p2u) 3372 | -7/Factory | Lost 4 parts (1n3w) 3389 | -7/Factory | Destroyed 7 combat bots 3545 | -7/Factory | Identified exit to Garrison 3546 | -7/Factory | Entered Garrison 3570 | -7/Garrison | Triggered checkpoint 3611 | -7/Garrison | Destroyed 7 combat bots 3844 | -7/Garrison | Core integrity fell below 50% 3890 | -7/Garrison | Triggered checkpoint 3966 | -7/Garrison | Triggered checkpoint 3997 | -7/Garrison | Discovered new exit (range 10) 4108 | -7/Garrison | Expanded RIF knowledge: Alert ID Control 4125 | -7/Garrison | Garrison Relay disabled 4210 | -7/Garrison | Triggered checkpoint 4374 | -7/Garrison | Expanded RIF knowledge: Program Shield 4406 | -7/Garrison | Triggered checkpoint 4454 | -7/Garrison | Discovered new exit (range 5) 4455 | -7/Garrison | Build established: Scavenger-Gunner 4515 | -7/Garrison | Discovered new exit (range 10) 4559 | -7/Garrison | Garrison Relay disabled 4560 | -7/Garrison | Triggered checkpoint 4624 | -7/Garrison | Entered Factory 4729 | -7/Factory | Identified exit to DSF 4901 | -7/Factory | Build established: Bothacker-Gunner 5194 | -7/Factory | Identified exit to Garrison 5198 | -7/Factory | Entered Garrison 5198 | -7/Garrison | Accompanied by 2 allies 5254 | -7/Garrison | Triggered checkpoint 5323 | -7/Garrison | Garrison Relay disabled 5404 | -7/Garrison | Heavy support dispatched to Factory 5491 | -7/Garrison | Triggered checkpoint 5510 | -7/Garrison | Core integrity fell below 20% 5530 | -7/Garrison | Phase Generator disabled 5573 | -7/Garrison | Discovered new exit (range 10) 5658 | -7/Garrison | Heavy support dispatched to Factory 5669 | -7/Garrison | Destroyed by H-61 Shepherd with Heavy Assault Cannon Last Messages --------------- System corrupted: Substantial component data lost. EXIT=FOUND Slug penetrates H-XX Assembler. Storage Shell breached. Machine disabled. Dropped Lgt. Nuclear Core. H-XX Assembler finishes assembling H-61 Shepherd. ALERT: Dispatching Heavy support to Factory. Knocked back. Destroyed System Restoration Module. Slug penetrates H-61 Shepherd. O-24 Administrator destroyed. Slug penetrates H-XX Assembler. Penetrated by Slug. Mni. Grenade Launcher destroyed. Dropped Hvy. Laser. Acquired Hvy. Assault Cannon. Slug penetrates H-61 Shepherd. Map ----- +----------------------------------------------------+ | ???????????????????????????????????????# | | ???????????????????????????????????????? | | ???????????????????????????????????????? | | ???????????????????????????????????????? | | ???????????????????????????????????????? | | ????????????????????????????????????#??? | | ???????????????????????????????????????? | | ???????????????????????????????????????? | | ???????????????????????????????????????# | | ???????????????????????????????????????? | | ???????????????????????????????????????? | | ???????????????????????????????????????? | | ???????????????????????????????????????? | | ???????????????????????????????????????? | | ???????????????????????????????????????? | | ????????????????????????# ???????????? | | ???????????????????????? ??????????? | | ???????????????????????? ?# #??????? | | ???????????????????????? ######## | | ???????????????????????? ^^ | | ???????????????????????? =%=^ | | ???????????????????????? ## ##### | | ???????????????????????? # #???? | | ???????############????? # #???? | | ???????#"" ""#!!*%#????? ?# #???? | | ???????## "]@*!#?????# ??# ##### | | ???????#"" [ ""##???? ???# | | ???????#""" H #???? #????# ## ## | | ???????#"""= ###### #?????# ## #? | | ???????#"" ! + #?????# ## #? | | ???????#""" ###### #?????# ## #? | | ???????#""" #???## ####### ## #? | | ???????#"" """"##???# ## #? | | ???????## "?????????# #? | | ???????#"""""#?????????# < ##### #### #? | | ???????#######?????????# #???# #??# #? | | ???????????????????????#####???# #??# #? | | ???????????????????????????????# #??# #? | | ???????????????????????????????# #??# #? | | ???????????????????????????????# ?? ? | | ???????????????????????????????###??"""? | | ???????????????????????????????????????? | | ???????????????????????????????????????? | | ???????????????????????????????????????? | | ???????????????????????????????????????? | | ???????????????????????????????????????? | | ???????????????????????????????????????? | | ???????????????????????????????????????? | | ???????????????????????????????????????? | | ???????????????????????????????????????? | +----------------------------------------------------+ Best States ------------- Heat Dissipation 48 Energy Generation 25 Energy Capacity 350 Matter Stores 300 Matter Capacity 300 Sight Range 16 Terrain Scan Density 10 Jamming Range 12 Armor Coverage 450 Resistance: KI 20 Resistance: EM 20 Power Shielding 33 Weapon Cycling 15 Evasion (%) 42 Targeting Accuracy 6 Target Analysis 5 Core Analysis 6 Recoil Reduction 2 Offensive Hacking 10 Relay Coupler Types 1 Relay Coupler Value 28 Item Schematics ----------------- Reflective Plating | -9/Recycling | Hacked Robot Schematics ------------------ None Fabricated ------------ Nothing Alien Tech Used ----------------- None Achievements -------------- None Challenges ------------ None Game ------ Seed BiomechanicalNavigationBank Manual? 0 Play Time 01:03:54 Cumulative 74.0 hours Start 2024.05.02 @ 02:02:27 End 2024.05.02 @ 03:06:39 Sessions 1 Manual Loads 0 Difficulty Rogue Special Mode None Game No. 83 Rogue 74 Adventurer 9 Explorer 0 Win Type - Total 0 Types 0/0/0/0/0/0/0/0/0 Lore% 42 Gallery% 55 Achievement% 42 Wizard Run 0 Options --------- Layout 1 ASCII 0 Keyboard 0 Movement Numpad Keybinds 0 Fullscreen 1 Font 24/Smallcaps Map View 50x35 Zoom Use 0% Tactical HUD 0 Map Filters NONE Filters NONE Steam 1 RUN: f5cfcf6f-944f-465d-a677-bfb18bc0fcab